[Event "Orbis-2 GM 2019"]
[Site "Paracin"]
[Date "2019.07.13"]
[Round "1.1"]
[White "Eswaran, Ashritha"]
[Black "Lim, Zhuo Ren"]
[Result "1/2-1/2"]
[ECO "B90"]
[WhiteElo "2257"]
[BlackElo "2217"]
[Annotator "NA"]
[PlyCount "107"]
[EventDate "2019.07.13"]
[EventType "tourn"]
[EventCountry "SRB"]
[SourceTitle "playchess.com"]
[Source "ChessBase"]
[SourceQuality "1"]
[TimeControl "40/5400+30:1800+30"]

1. e4 c5 2. Nf3 d6 3. d4 cxd4 4. Nxd4 Nf6 5. Nc3 a6 6. Be3 e5 7. Nf3 Be7 8. Bc4 O-O 9. O-O Be6 10. Bb3 b5 11. Nd5 Nxd5 12. Bxd5 Bxd5 13. Qxd5 Nd7 14. Rfd1 Qc7 15. c3 h6 16. Qd3 Qc6 17. a4 bxa4 18. Qc2 Rfb8 19. Nd2 Nf6 20. Rdb1 Rb4 21. Qd1 Rb5 22. Qxa4 Qb7 23. c4 Rb4 24. Qc2 Ng4 25. Nf1 Rb8 26. Ra2 Bd8 27. h3 Nf6 28. Ng3 Rc8 29. Ra4 Rxa4 30. Qxa4 Nxe4 31. Nxe4 Qxe4 32. Qe8+ Kh7 33. Rc1 Qb7 34. Qa4 a5 35. Rc2 Qc6 36. Qa3 Qe4 37. Rc3 Rxc4 38. Rxc4 Qxc4 39. Qxd6 Bc7 40. Qd7 a4 41. g3 g6 42. h4 h5 43. Qe7 Kg7 44. Bc5 Bb8 45. Qf8+ Kh7 46. Be3 Qc7 47. Bg5 Ba7 48. Qh6+ Kg8 49. Bf6 Bxf2+ 50. Kf1 Qc4+ 51. Kxf2 Qc2+ 52. Kg1 Qb1+ 53. Kg2 Qe4+ 54. Kg1 1/2-1/2

[Event "Orbis-2 GM 2019"]
[Site "Paracin"]
[Date "2019.07.13"]
[Round "1.2"]
[White "Audi Ameya"]
[Black "Nie, Xinyang"]
[Result "1-0"]
[ECO "B13"]
[WhiteElo "2328"]
[BlackElo "2375"]
[Annotator "NA"]
[PlyCount "57"]
[EventDate "2019.07.13"]
[EventType "tourn"]
[EventCountry "SRB"]
[SourceTitle "playchess.com"]
[Source "ChessBase"]
[SourceQuality "1"]
[TimeControl "40/5400+30:1800+30"]

1. e4 {[%emt 0:00:00]} c6 {[%emt 0:00:00]} 2. d4 {[%emt 0:00:16]} d5 {[%emt 0:00:00]} 3. exd5 {[%emt 0:00:12]} cxd5 {[%emt 0:00:00]} 4. Nf3 {[%emt 0:00:08]} Nf6 {[%emt 0:00:08]} 5. Ne5 {[%emt 0:00:53]} Nbd7 {[%emt 0:01:41]} 6. Bd3 {[%emt 0:02:00]} g6 {[%emt 0:00:57]} 7. O-O {[%emt 0:01:17]} Bg7 {[%emt 0:00:10]} 8. Re1 {[%emt 0:01:39]} O-O {[%emt 0:02:38]} 9. Nf3 {[%emt 0:00:07]} e5 {[%emt 0:03:44]} 10. dxe5 {[%emt 0:12:18]} Ng4 {[%emt 0:00:04]} 11. Bf4 {[%emt 0:00:42]} Qb6 {[%emt 0:01:06]} 12. Qd2 {[%emt 0:00:39]} Qxb2 {[%emt 0:02:24]} 13. Nc3 {[%emt 0:00:23]} Ngxe5 {[%emt 0:03:33]} 14. Nxe5 {[%emt 0:19:15]} Nxe5 {[%emt 0:00:04]} 15. Nxd5 {[%emt 0:00:07]} Nxd3 {[%emt 0:02:57]} 16. Qxd3 {[%emt 0:00:03]} Be6 {[%emt 0:01:21]} 17. Rab1 {[%emt 0:24:13]} Qxa2 {[%emt 0:00:55]} 18. Ne7+ {[%emt 0:00:03]} Kh8 {[%emt 0:00:05]} 19. Rxb7 {[%emt 0:00:06]} Rfe8 {[%emt 0:15:14]} 20. Qe3 {[%emt 0:13:47]} Qa5 {[%emt 0:01:10]} 21. h4 {[%emt 0:01:21]} Qc3 {[%emt 0:05:00]} 22. Qc1 {[%emt 0:06:04]} a5 {[%emt 0:01:48]} 23. h5 {[%emt 0:02:20]} gxh5 {[%emt 0:01:23]} 24. Bd6 {[%emt 0:04:05]} a4 {[%emt 0:01:09]} 25. Ba3 {[%emt 0:00:18]} Reb8 {[%emt 0:04:09]} 26. Bb2 {[%emt 0:00:39]} Rxb7 {[%emt 0:00:04]} 27. Bxc3 {[%emt 0:00:03]} Bxc3 {[%emt 0:00:04]} 28. Qa3 {[%emt 0:02:06]} Bxe1 {[%emt 0:04:35]} 29. Qa1+ {[%emt 0:00:06]} 1-0

[Event "Orbis-2 GM 2019"]
[Site "Paracin"]
[Date "2019.07.13"]
[Round "1.3"]
[White "Lee, Jun Hyeok"]
[Black "Kosic, Dragan"]
[Result "1-0"]
[ECO "A46"]
[WhiteElo "2383"]
[BlackElo "2482"]
[Annotator "ChessBase"]
[PlyCount "47"]
[EventDate "2019.07.13"]
[EventType "tourn"]
[EventCountry "SRB"]
[SourceTitle "playchess.com"]
[Source "ChessBase"]
[SourceQuality "1"]
[TimeControl "40/5400+30:1800+30"]

1. d4 e6 2. Nf3 Nf6 3. e3 b6 4. Bd3 Bb7 5. O-O d5 6. b3 Bd6 7. Bb2 c5 8. Nbd2 O-O 9. Qe2 cxd4 10. exd4 Nc6 11. a3 Rc8 12. Ne5 Ne7 13. f4 Rc7 14. c4 Qa8 15. Rae1 a6 16. g4 dxc4 17. bxc4 Ng6 18. g5 Bxe5 19. fxe5 Nd7 20. Qh5 Rd8 21. Rxf7 Ndxe5 22. Rxc7 Nxd3 23. d5 Nxb2 24. Ne4 1-0

[Event "Orbis-2 GM 2019"]
[Site "Paracin"]
[Date "2019.07.13"]
[Round "1.4"]
[White "Djordjevic, Vuk"]
[Black "Savic, Miodrag R"]
[Result "0-1"]
[ECO "D38"]
[WhiteElo "2412"]
[BlackElo "2503"]
[Annotator "ChessBase"]
[PlyCount "62"]
[EventDate "2019.07.13"]
[EventType "tourn"]
[EventCountry "SRB"]
[SourceTitle "playchess.com"]
[Source "ChessBase"]
[SourceQuality "1"]
[TimeControl "40/5400+30:1800+30"]

1. d4 {[%emt 0:00:00]} d5 {[%emt 0:00:00]} 2. c4 {[%emt 0:00:43]} e6 {[%emt 0:00:00]} 3. Nf3 {[%emt 0:00:08]} Nf6 {[%emt 0:00:35]} 4. Nc3 {[%emt 0:00:16]} Bb4 {[%emt 0:00:17]} 5. cxd5 {[%emt 0:01:22]} exd5 {[%emt 0:00:59]} 6. Bg5 {[%emt 0:01:38]} O-O {[%emt 0:00:54]} 7. Qb3 {[%emt 0:03:41]} Bxc3+ {[%emt 0:15:08]} 8. bxc3 {[%emt 0:03:47]} Nbd7 {[%emt 0:02:59]} 9. e3 {[%emt 0:03:37]} c5 {[%emt 0:03:37]} 10. Ne5 {[%emt 0:10:43]} cxd4 {[%emt 0:06:18]} 11. Nxd7 {[%emt 0:00:41]} Bxd7 {[%emt 0:00:39]} 12. Bxf6 {[%emt 0:00:57]} gxf6 {[%emt 0:19:50]} 13. exd4 {[%emt 0:04:05]} Re8+ {[%emt 0:01:35]} 14. Kd2 {[%emt 0:01:08]} Bf5 {[%emt 0:07:04]} 15. Be2 {[%emt 0:20:15]} Re6 {[%emt 0:09:51]} 16. Bf3 {[%emt 0:14:52]} Rb6 {[%emt 0:01:51]} 17. Qa3 {[%emt 0:03:44]} Ra6 {[%emt 0:11:30]} 18. Qb4 {[%emt 0:09:16]} Rb6 {[%emt 0:00:36]} 19. Qa3 {[%emt 0:00:31]} Qc7 {[%emt 0:02:09]} 20. g3 {[%emt 0:04:46]} Qc6 {[%emt 0:03:21]} 21. Rhe1 {[%emt 0:01:36]} Qb5 {[%emt 0:00:41]} 22. Re3 {[%emt 0:00:52]} Rc8 {[%emt 0:02:22]} 23. Ke1 {[%emt 0:02:28]} Re8 {[%emt 0:01:28]} 24. Rxe8+ {[%emt 0:02:00]} Qxe8+ {[%emt 0:00:01]} 25. Kf1 {[%emt 0:00:49]} Bh3+ {[%emt 0:03:14]} 26. Kg1 {[%emt 0:00:08]} Qb5 {[%emt 0:00:12]} 27. Qc1 {[%emt 0:01:47]} Kg7 {[%emt 0:01:35]} 28. Qd2 {[%emt 0:02:11]} Re6 {[%emt 0:00:01]} 29. Re1 {[%emt 0:02:03]} Qd3 {[%emt 0:00:36]} 30. Qxd3 {[%emt 0:01:10]} Rxe1+ {[%emt 0:00:05]} 31. Qf1 {[%emt 0:00:02]} Rxf1# {[%emt 0:00:17]} 0-1

[Event "Orbis-2 GM 2019"]
[Site "Paracin"]
[Date "2019.07.14"]
[Round "2.5"]
[White "Eswaran, Ashritha"]
[Black "Audi Ameya"]
[Result "0-1"]
[ECO "B48"]
[WhiteElo "2257"]
[BlackElo "2328"]
[Annotator "ChessBase"]
[PlyCount "76"]
[EventDate "2019.07.13"]
[EventType "tourn"]
[EventCountry "SRB"]
[SourceTitle "playchess.com"]
[Source "ChessBase"]
[SourceQuality "1"]
[TimeControl "40/5400+30:1800+30"]

1. e4 c5 {[%emt 0:04:00]} 2. Nf3 {[%emt 0:00:00]} e6 {[%emt 0:00:04]} 3. d4 {[%emt 0:00:14]} cxd4 {[%emt 0:00:03]} 4. Nxd4 {[%emt 0:00:10]} Nc6 {[%emt 0:00:02]} 5. Nc3 {[%emt 0:00:12]} Qc7 {[%emt 0:00:03]} 6. Be3 {[%emt 0:00:12]} a6 {[%emt 0:00:40]} 7. Qf3 {[%emt 0:00:27]} d6 {[%emt 0:00:34]} 8. O-O-O {[%emt 0:00:49]} Bd7 {[%emt 0:00:55]} 9. Qg3 {[%emt 0:00:27]} Nf6 {[%emt 0:02:41]} 10. Kb1 {[%emt 0:01:33]} Rc8 {[%emt 0:03:20]} 11. Bd3 {[%emt 0:11:50]} Ne5 {[%emt 0:37:11]} 12. f4 {[%emt 0:11:04]} Nc4 {[%emt 0:03:33]} 13. Bxc4 {[%emt 0:06:04]} Qxc4 {[%emt 0:00:03]} 14. e5 {[%emt 0:00:35]} dxe5 {[%emt 0:07:33]} 15. fxe5 {[%emt 0:00:39]} Nd5 {[%emt 0:00:02]} 16. Nxd5 {[%emt 0:00:51]} exd5 {[%emt 0:00:02]} 17. Rhf1 {[%emt 0:05:32]} Be6 {[%emt 0:06:38]} 18. Rf2 {[%emt 0:07:11]} g6 {[%emt 0:08:27]} 19. Qf3 {[%emt 0:15:27]} Be7 {[%emt 0:04:48]} 20. g3 {[%emt 0:08:07]} Kd7 {[%emt 0:03:09]} 21. Rd3 {[%emt 0:02:15]} Rhf8 {[%emt 0:05:44]} 22. b3 {[%emt 0:07:16]} Qb4 {[%emt 0:00:15]} 23. Qd1 {[%emt 0:06:25]} Rc3 {[%emt 0:02:25]} 24. a3 {[%emt 0:05:31]} Rxd3 {[%emt 0:01:44]} 25. Qxd3 {[%emt 0:01:10]} Qxa3 {[%emt 0:00:02]} 26. c3 {[%emt 0:01:53]} Qa5 {[%emt 0:01:41]} 27. Rc2 {[%emt 0:00:56]} Rc8 {[%emt 0:01:48]} 28. h4 {[%emt 0:01:02]} Qc7 {[%emt 0:02:47]} 29. Bf4 {[%emt 0:00:35]} Qb6 {[%emt 0:01:09]} 30. Kc1 {[%emt 0:01:23]} Bc5 {[%emt 0:01:17]} 31. Be3 {[%emt 0:01:49]} Bxd4 {[%emt 0:01:29]} 32. Bxd4 {[%emt 0:00:06]} Qxb3 {[%emt 0:00:04]} 33. Rb2 {[%emt 0:00:28]} Qa3 {[%emt 0:00:04]} 34. Qf3 {[%emt 0:00:04]} Rc4 {[%emt 0:01:50]} 35. Qf6 {[%emt 0:01:25]} Qa1+ {[%emt 0:00:47]} 36. Rb1 {[%emt 0:00:28]} Rxc3+ {[%emt 0:00:26]} 37. Kd2 {[%emt 0:00:06]} Qxb1 {[%emt 0:00:36]} 38. Bxc3 {[%emt 0:00:05]} Qa2+ {[%emt 0:00:22]} 0-1